bitfinex/quotes_BTCUSD_20240918
["timestamp","ask_amount","ask_price","bid_price","bid_amount"]
[1726628493329,0.04238778,60477.0,60476.0,1.168354]
[1726628493779,0.02867804,60477.0,60476.0,1.168354]
[1726628495309,0.02867804,60477.0,60476.0,1.499063]
[1726628495958,0.00273932,60477.0,60476.0,1.499063]
[1726628496174,0.00273932,60477.0,60476.0,1.98120658]
[1726628496408,0.00073932,60477.0,60476.0,2.30891558]
[1726628496617,0.00173932,60477.0,60476.0,2.31691558]
[1726628496830,0.00173932,60477.0,60476.0,1.65549758]
[1726628497042,0.00173932,60477.0,60476.0,1.834772]
[1726628498125,0.00073932,60477.0,60476.0,1.826772]
[1726628498340,0.00073932,60477.0,60476.0,3.17226217]
[1726628498579,0.00073932,60477.0,60476.0,3.0962733]
[1726628498793,0.00073932,60477.0,60476.0,2.75761525]
[1726628499049,0.00073932,60477.0,60476.0,3.08832425]
[1726628499278,0.00073932,60477.0,60476.0,3.19841367]
[1726628499764,0.00073932,60477.0,60476.0,3.22641367]
[1726628499999,0.00073932,60477.0,60476.0,3.21241367]
[1726628500220,0.00073932,60477.0,60476.0,3.19841367]
[1726628500463,0.00073932,60477.0,60476.0,3.07532425]
[1726628500704,0.0081495,60499.0,60476.0,3.07532425]
[1726628500705,0.0040165,60499.0,60498.0,0.165294]
[1726628500952,0.16526,60511.0,60501.0,0.002]
[1726628501178,0.23173557,60510.0,60502.0,0.495845]
[1726628501379,0.23173557,60510.0,60504.0,0.165277]
[1726628501380,0.23173357,60510.0,60504.0,0.165277]
[1726628502353,0.1,60520.0,60504.0,0.165277]
[1726628502354,0.15143458,60528.0,60512.0,0.03]
[1726628502591,0.16524,60518.0,60512.0,0.195256]
[1726628503068,0.165236,60520.0,60512.0,0.03]
[1726628503314,0.06510603,60520.0,60516.0,0.165244]
[1726628503557,0.23034103,60520.0,60514.0,0.16525]
[1726628503801,0.06510603,60520.0,60514.0,0.16525]
[1726628504008,0.23034003,60520.0,60514.0,0.16525]
[1726628504265,0.02592378,60525.0,60524.0,0.03]
[1726628504473,0.02592378,60525.0,60524.0,0.195223]
[1726628504689,0.02592378,60525.0,60522.0,0.03]
[1726628505116,0.02592378,60525.0,60523.0,0.03]
[1726628505335,0.02592378,60525.0,60515.0,0.06]
[1726628505544,0.02592378,60525.0,60514.0,0.407401]
[1726628505545,0.06401394,60524.0,60514.0,0.06]
[1726628505781,0.165247,60516.0,60514.0,0.06]
[1726628506028,0.15143458,60521.0,60510.0,0.06]
[1726628506309,0.15143458,60521.0,60504.0,0.5429]
[1726628506310,0.165269,60508.0,60505.0,0.06]
[1726628506526,0.069306,60520.0,60496.0,0.99176013]
[1726628506527,0.15556659,60517.0,60501.0,0.03]
[1726628506792,0.15556659,60517.0,60500.0,0.03]
[1726628506793,0.165286,60501.0,60500.0,0.03]
[1726628506996,0.165286,60501.0,60500.0,0.06]
[1726628507207,0.34012197,60501.0,60494.0,0.06]
[1726628507411,0.330579,60500.0,60494.0,0.06]
[1726628507638,0.07183374,60499.0,60491.0,0.06]
[1726628507855,0.165305,60494.0,60491.0,0.06]
[1726628508269,0.00953979,60493.0,60491.0,0.06]
[1726628508689,0.00953979,60493.0,60492.0,0.165311]
[1726628508905,0.00953979,60493.0,60491.0,0.06]
[1726628509124,0.06770093,60499.0,60492.0,0.165309]
[1726628509334,0.35651012,60500.0,60491.0,0.56394]
[1726628509335,0.00859579,60492.0,60491.0,0.56394]
[1726628509548,0.00932562,60498.0,60497.0,0.06]
[1726628509757,0.330532,60509.0,60499.0,0.06]
[1726628509970,0.5040165,60554.0,60499.0,0.06]
[1726628509971,0.165276,60505.0,60500.0,0.165286]
[1726628510176,0.164778,60505.0,60499.0,0.06]
[1726628510410,0.165279,60504.0,60499.0,0.06]
[1726628510645,0.165179,60504.0,60499.0,0.22529]
[1726628510846,0.164979,60504.0,60499.0,0.22529]
[1726628511055,0.164979,60504.0,60500.0,0.001644]
[1726628511056,0.164579,60504.0,60500.0,0.001644]
[1726628511298,0.16527,60507.0,60500.0,0.394221]
[1726628511424,0.23198302,60507.0,60500.0,0.394221]
[1726628511668,0.164973,60506.0,60501.0,0.165284]
[1726628511864,0.167176,60505.0,60501.0,0.002]
[1726628512076,0.166876,60505.0,60501.0,0.002]
[1726628512311,0.002,60505.0,60501.0,0.002]
[1726628512651,0.23378402,60507.0,60501.0,0.167286]
[1726628512862,0.167274,60506.0,60501.0,0.166286]
[1726628513313,0.06851302,60507.0,60506.0,0.195272]
[1726628513314,0.002,60507.0,60506.0,0.195272]
[1726628513524,0.0342021,60535.0,60527.0,0.03]
[1726628513525,0.0042021,60535.0,60527.0,0.03]
[1726628513732,0.00413056,60534.0,60527.0,0.03]
[1726628513955,0.165197,60534.0,60527.0,0.195215]
[1726628514219,0.165197,60534.0,60527.0,0.03]
[1726628514428,0.1652,60533.0,60527.0,0.03]
[1726628514662,0.165198,60534.0,60527.0,0.03]
[1726628514877,0.165209,60530.0,60525.0,0.06]
[1726628515334,0.000822,60531.0,60523.0,0.06]
[1726628515335,0.165211,60529.0,60523.0,0.06]
[1726628515592,0.88950295,60528.0,60527.0,0.001]
[1726628515818,0.88950295,60528.0,60517.0,0.03]
[1726628515819,0.330458,60523.0,60517.0,0.03]
[1726628516063,0.330458,60523.0,60505.0,0.16305367]
[1726628516064,0.165234,60520.0,60514.0,0.225249]
[1726628516307,0.33458928,60522.0,60514.0,0.06]
[1726628516551,0.165235,60520.0,60514.0,0.06]
[1726628516836,0.165237,60519.0,60514.0,0.06]
[1726628517085,0.165237,60519.0,60514.0,0.22525]
[1726628517086,0.00778814,60519.0,60514.0,0.22525]
[1726628517548,0.00778814,60519.0,60515.0,0.165247]
[1726628517788,0.00778814,60519.0,60518.0,0.16524]
[1726628518029,0.00778814,60519.0,60517.0,0.06]
[1726628518030,0.165229,60522.0,60517.0,0.225241]
[1726628518269,0.35636062,60526.0,60517.0,0.225241]
[1726628518270,0.00775488,60519.0,60517.0,0.225241]
[1726628518501,0.02592062,60526.0,60517.0,0.06]
[1726628518738,0.165225,60524.0,60518.0,0.165239]
[1726628518974,0.165223,60524.0,60521.0,0.03]
[1726628519206,0.165226,60523.0,60520.0,0.03]
[1726628519447,0.165221,60525.0,60521.0,0.03]
[1726628519937,0.165231,60522.0,60517.0,0.06]
[1726628520843,0.39429743,60524.0,60517.0,0.06]
[1726628521070,0.39429743,60524.0,60514.0,0.165249]
[1726628521071,0.330469,60520.0,60518.0,0.007]
[1726628521314,0.165252,60514.0,60509.0,0.225263]
[1726628521554,0.330475,60519.0,60510.0,0.165261]
[1726628521792,0.495723,60518.0,60517.0,0.009]
[1726628522510,0.165251,60514.0,60512.0,0.06]
[1726628522696,0.330499,60515.0,60511.0,0.03]
[1726628522918,0.165255,60513.0,60511.0,0.03]
[1726628523139,0.165249,60515.0,60511.0,0.03]
[1726628524282,0.165255,60513.0,60511.0,0.03]
[1726628524533,0.165258,60512.0,60511.0,0.03]
[1726628524762,0.330503,60514.0,60511.0,0.03]
[1726628524763,0.165251,60514.0,60511.0,0.06]
[1726628524969,0.165251,60514.0,60511.0,0.068]
[1726628525184,0.165251,60514.0,60511.0,0.06]
[1726628525665,0.001,60515.0,60511.0,0.061]
[1726628525869,0.001,60515.0,60512.0,0.165254]
[1726628526081,0.02592232,60514.0,60512.0,0.165254]
[1726628526985,0.02592232,60514.0,60513.0,0.225253]
[1726628527193,0.02592232,60514.0,60513.0,0.227253]
[1726628528049,0.001,60515.0,60514.0,0.165251]
[1726628528266,0.001,60515.0,60514.0,0.195251]
[1726628529102,0.165226,60523.0,60518.0,0.165237]
[1726628529536,0.00780816,60522.0,60519.0,0.165236]
[1726628529772,0.00413099,60521.0,60518.0,0.03]
[1726628529987,0.165234,60521.0,60518.0,0.03]
[1726628530203,0.17305642,60521.0,60518.0,0.03]
[1726628530415,0.165235,60520.0,60518.0,0.03]
[1726628530627,0.165238,60519.0,60518.0,0.03]
[1726628530852,0.17305094,60519.0,60515.0,0.06]
[1726628531073,0.00781294,60519.0,60518.0,0.03]
[1726628531578,0.00781769,60519.0,60518.0,0.03]
[1726628532011,0.00781769,60519.0,60518.0,0.039]
[1726628532252,0.165232,60521.0,60518.0,0.039]
[1726628532462,0.00781769,60519.0,60518.0,0.039]
[1726628532678,0.165232,60521.0,60518.0,0.039]
[1726628532892,0.00781769,60519.0,60518.0,0.039]
[1726628533102,0.170232,60521.0,60518.0,0.039]
[1726628533318,0.00781769,60519.0,60518.0,0.039]
[1726628533536,0.330457,60523.0,60518.0,0.039]
[1726628533749,0.00781769,60519.0,60518.0,0.039]
[1726628533963,0.165232,60521.0,60518.0,0.009]
[1726628534179,0.17305469,60519.0,60518.0,0.009]
[1726628534389,0.165237,60519.0,60518.0,0.009]
[1726628534635,0.17305469,60519.0,60518.0,0.009]
[1726628534841,0.16524,60518.0,60516.0,0.06]
[1726628535062,0.00781769,60519.0,60516.0,0.227244]
[1726628535281,0.002,60521.0,60520.0,0.03]
[1726628535934,0.000822,60522.0,60520.0,0.03]
[1726628536154,0.000822,60522.0,60521.0,0.736394]
[1726628536806,0.000822,60522.0,60521.0,0.734394]
[1726628537362,0.000822,60522.0,60521.0,0.88782858]
[1726628537450,0.000822,60522.0,60521.0,0.2387]
[1726628537674,0.000822,60522.0,60521.0,0.403931]
[1726628537675,0.00861336,60522.0,60521.0,0.403931]
[1726628537892,0.000822,60522.0,60521.0,0.738394]
[1726628538110,0.00861336,60522.0,60521.0,0.738394]
[1726628538319,0.00861336,60522.0,60521.0,0.740394]
[1726628538567,0.000822,60522.0,60521.0,0.752394]
[1726628538790,0.000822,60522.0,60521.0,0.004]
[1726628539000,0.00864916,60522.0,60521.0,0.008]
[1726628539214,0.00864916,60522.0,60519.0,0.225235]
[1726628539431,0.00964916,60522.0,60521.0,0.525694]
[1726628539646,0.00964916,60522.0,60521.0,0.225231]
[1726628539862,0.00964916,60522.0,60521.0,1.237231]
[1726628539863,0.001822,60522.0,60521.0,1.237231]
[1726628540073,0.000822,60522.0,60521.0,1.237231]
[1726628540531,0.001822,60522.0,60521.0,1.237231]
[1726628540957,0.000822,60522.0,60521.0,1.555694]
[1726628541207,0.000822,60522.0,60521.0,1.563694]
[1726628541430,0.000822,60522.0,60521.0,1.555694]
[1726628541871,0.000822,60522.0,60521.0,1.567694]
[1726628542080,0.000822,60522.0,60521.0,1.569694]
[1726628542330,0.000822,60522.0,60521.0,1.573694]
[1726628542828,0.000822,60522.0,60521.0,1.557694]
[1726628543040,0.000822,60522.0,60521.0,1.561694]
[1726628543250,0.000822,60522.0,60521.0,1.892157]
[1726628543458,0.000822,60522.0,60521.0,1.561694]
[1726628543690,0.000822,60522.0,60521.0,1.557694]
[1726628543949,0.000822,60522.0,60521.0,1.561694]
[1726628544563,0.000822,60522.0,60521.0,1.573694]
[1726628544900,0.000822,60522.0,60521.0,1.561694]
[1726628545109,0.000822,60522.0,60521.0,1.575694]
[1726628545323,0.000822,60522.0,60521.0,1.571694]
[1726628545533,0.000822,60522.0,60521.0,1.577694]
[1726628546178,0.000822,60522.0,60521.0,1.571694]
[1726628546386,0.000822,60522.0,60521.0,1.563694]
[1726628546795,0.000822,60522.0,60521.0,1.557694]
[1726628547211,0.000822,60522.0,60521.0,1.563694]
[1726628547426,0.000822,60522.0,60521.0,1.894157]
[1726628547634,0.000822,60522.0,60521.0,1.908157]
[1726628548492,0.000822,60522.0,60521.0,1.902157]
[1726628548946,0.000822,60522.0,60521.0,1.908157]
[1726628549394,0.000822,60522.0,60521.0,1.902157]
[1726628549634,0.000822,60522.0,60521.0,1.908157]
[1726628550080,0.000822,60522.0,60521.0,1.902157]
[1726628550515,0.000822,60522.0,60521.0,1.908157]
[1726628551135,0.000822,60522.0,60521.0,1.563694]
[1726628551337,0.000822,60522.0,60521.0,1.08]
[1726628551801,0.000822,60522.0,60521.0,1.245231]
[1726628552013,0.000822,60522.0,60521.0,1.239231]
[1726628552213,0.000822,60522.0,60521.0,1.066]
[1726628552653,0.000822,60522.0,60521.0,1.239231]
[1726628552849,0.000822,60522.0,60521.0,1.233231]
[1726628553088,0.001822,60522.0,60521.0,1.233231]
[1726628554872,0.001822,60522.0,60521.0,1.068]
[1726628555080,0.001822,60522.0,60521.0,1.233231]
[1726628555905,0.000822,60522.0,60521.0,1.225231]
[1726628556111,0.000822,60522.0,60521.0,1.234231]
[1726628556326,0.000822,60522.0,60521.0,1.566694]
[1726628556539,0.000822,60522.0,60521.0,1.236231]
[1726628556961,0.000822,60522.0,60521.0,1.234231]
[1726628557367,0.000822,60522.0,60521.0,1.225231]
[1726628557775,0.000822,60522.0,60521.0,1.555694]
[1726628558261,0.000822,60522.0,60521.0,1.564694]
[1726628558683,0.000822,60522.0,60521.0,1.555694]
[1726628558888,0.000822,60522.0,60521.0,1.566694]
[1726628559139,0.000822,60522.0,60521.0,1.557694]
[1726628559565,0.000822,60522.0,60521.0,1.569694]
[1726628559778,0.000822,60522.0,60521.0,1.573694]
[1726628564232,0.000822,60522.0,60521.0,1.904157]
[1726628565120,0.000822,60522.0,60521.0,1.569694]
[1726628565339,0.000822,60522.0,60521.0,1.557694]
[1726628565566,0.000822,60522.0,60521.0,1.078]
[1726628566007,0.00903428,60522.0,60521.0,1.078]
[1726628566223,0.000822,60522.0,60521.0,1.078]
[1726628566447,0.000822,60522.0,60521.0,1.243231]
[1726628566693,0.000822,60522.0,60521.0,1.078]
[1726628567159,0.000822,60522.0,60521.0,1.018]
[1726628567160,0.56056418,60522.0,60521.0,1.018]
[1726628567401,0.89926296,60522.0,60521.0,1.018]
[1726628567649,1.22972096,60522.0,60521.0,1.018]
[1726628568387,1.22972096,60522.0,60507.0,0.39878719]
[1726628568388,0.826335,60508.0,60507.0,0.001644]
[1726628568632,0.8923017,60508.0,60507.0,0.24952052]
[1726628568893,0.8923017,60508.0,60507.0,0.001644]
[1726628568894,0.57060184,60508.0,60507.0,0.001644]
[1726628569567,0.24006784,60508.0,60507.0,0.001644]
[1726628569786,0.07480084,60508.0,60507.0,0.001644]
[1726628570226,0.24006784,60508.0,60507.0,0.001644]
[1726628570448,0.00883414,60508.0,60507.0,0.196914]
[1726628570695,0.02592561,60511.0,60507.0,0.198914]
[1726628570884,0.165257,60512.0,60507.0,0.196914]
[1726628570885,0.00880855,60508.0,60507.0,0.196914]
[1726628571099,0.003,60508.0,60507.0,0.196914]
[1726628571309,0.003,60508.0,60507.0,0.201914]
[1726628571525,0.165257,60512.0,60507.0,0.196914]
[1726628571781,0.165248,60515.0,60510.0,0.165261]
[1726628572023,0.165234,60520.0,60516.0,0.002]
[1726628572239,0.000822,60522.0,60515.0,0.15343458]
[1726628572461,0.000822,60522.0,60518.0,0.06]
[1726628572682,0.165232,60521.0,60518.0,0.06]
[1726628573571,0.165235,60520.0,60518.0,0.06]
[1726628573788,0.331285,60522.0,60518.0,0.06]
[1726628574007,0.165235,60520.0,60518.0,0.06]
[1726628574475,0.166052,60522.0,60518.0,0.06]
[1726628574761,0.165234,60521.0,60518.0,0.061]
[1726628574976,0.167234,60521.0,60518.0,0.061]
[1726628575200,0.002,60521.0,60513.0,0.06]
[1726628575422,0.002,60521.0,60515.0,0.06]
[1726628575423,0.165244,60517.0,60515.0,0.06]
[1726628575662,0.495711,60519.0,60518.0,0.001]
[1726628576399,0.89064972,60519.0,60518.0,0.001]
[1726628576653,0.165252,60514.0,60510.0,0.0754]
[1726628576933,0.165254,60513.0,60510.0,0.0754]
[1726628577844,0.165256,60512.0,60510.0,0.0754]
[1726628578060,0.165259,60511.0,60510.0,0.0754]
[1726628578310,0.330508,60513.0,60507.0,0.061644]
[1726628578311,0.330509,60513.0,60507.0,0.061644]
[1726628578556,0.56133701,60511.0,60510.0,0.007]
[1726628578815,0.56133701,60511.0,60507.0,0.001644]
[1726628578816,0.495801,60508.0,60507.0,0.001644]
[1726628579266,0.826335,60508.0,60507.0,0.001644]
[1726628579546,0.8923017,60508.0,60507.0,0.001644]
[1726628579995,1.2228357,60508.0,60507.0,0.001644]
[1726628581318,1.2238357,60508.0,60507.0,0.008644]
[1726628581532,1.23260774,60508.0,60507.0,0.001644]
[1726628581752,1.23460774,60508.0,60507.0,0.006644]
[1726628582662,1.23260774,60508.0,60507.0,0.006644]
[1726628583108,1.23460774,60508.0,60507.0,0.006644]
[1726628583356,1.81674174,60508.0,60507.0,0.006644]
[1726628583570,1.89524174,60508.0,60507.0,0.006644]
[1726628584244,1.89424174,60508.0,60507.0,0.001644]
[1726628584488,1.89424174,60508.0,60507.0,0.006644]
[1726628584489,1.89224174,60508.0,60507.0,0.006644]
[1726628584730,1.89224174,60508.0,60507.0,0.001644]
[1726628584968,1.89224174,60508.0,60507.0,0.002644]
[1726628584969,1.90624174,60508.0,60507.0,0.002644]
[1726628585193,1.90624174,60508.0,60500.0,0.001644]
[1726628585194,1.180005,60501.0,60500.0,0.001644]
[1726628585408,1.7284573,60501.0,60500.0,0.001644]
[1726628585623,1.73706571,60501.0,60500.0,0.001644]
[1726628585853,1.86706571,60501.0,60500.0,0.001644]
[1726628586525,1.72463113,60501.0,60500.0,0.002644]
[1726628586765,1.34105813,60501.0,60500.0,0.002644]
[1726628587669,1.34205813,60501.0,60500.0,0.002644]
[1726628587883,1.34105813,60501.0,60500.0,0.002644]
[1726628588095,1.33205813,60501.0,60500.0,0.001644]
[1726628588308,1.34805813,60501.0,60500.0,0.001644]
[1726628588734,1.34905813,60501.0,60500.0,0.001644]
[1726628588943,1.23205813,60501.0,60500.0,0.001644]
[1726628589172,0.91248513,60501.0,60500.0,0.001644]
[1726628589406,0.91448513,60501.0,60500.0,0.001644]
[1726628589891,0.90348513,60501.0,60500.0,0.001644]
[1726628591096,0.90148513,60501.0,60500.0,0.001644]
[1726628591334,0.90948513,60501.0,60500.0,0.001644]
[1726628591579,0.93841774,60501.0,60500.0,0.001644]
[1726628591828,0.92741774,60501.0,60500.0,0.001644]
[1726628592077,0.92941774,60501.0,60500.0,0.001644]
[1726628592347,0.93841774,60501.0,60500.0,0.001644]
[1726628593097,0.91248513,60501.0,60500.0,0.001644]
[1726628594797,0.25133913,60501.0,60500.0,0.001644]
[1726628595281,0.91248513,60501.0,60500.0,0.001644]
[1726628595528,0.90348513,60501.0,60500.0,0.001644]
[1726628595772,0.57091213,60501.0,60500.0,0.001644]
[1726628596032,0.57991213,60501.0,60500.0,0.001644]
[1726628596573,0.91048513,60501.0,60500.0,0.001644]
[1726628596816,0.01760841,60501.0,60500.0,0.729511]
[1726628597047,0.01760841,60501.0,60500.0,1.060089]
[1726628597282,0.008,60501.0,60500.0,1.060089]
[1726628597545,0.330478,60519.0,60512.0,0.165255]
[1726628597856,0.06487429,60518.0,60509.0,0.062]
[1726628598053,0.07349674,60518.0,60512.0,0.002]
[1726628598290,0.165242,60517.0,60512.0,0.260955]
[1726628598531,0.165242,60517.0,60513.0,0.165252]
[1726628598532,0.06501083,60516.0,60513.0,0.165252]
[1726628598764,0.00861296,60516.0,60514.0,0.165251]
[1726628599476,0.00861296,60516.0,60513.0,0.002]
[1726628599952,0.00861296,60516.0,60512.0,0.258954]
[1726628600939,0.17385996,60516.0,60512.0,0.0937]
[1726628601186,0.17585996,60516.0,60512.0,0.0937]
[1726628601451,0.01061296,60516.0,60514.0,0.165249]
[1726628601699,0.00861296,60516.0,60514.0,0.165249]
[1726628601919,0.00961296,60516.0,60514.0,0.06]
[1726628602152,0.00861296,60516.0,60514.0,0.06]
[1726628602434,0.01061296,60516.0,60514.0,0.22525]
[1726628602663,0.002,60516.0,60514.0,0.22525]
[1726628602911,0.0086667,60515.0,60514.0,0.22525]
[1726628603144,0.0086667,60515.0,60514.0,0.22825]
[1726628603617,0.0086667,60515.0,60514.0,0.967054]
[1726628604084,0.001,60516.0,60515.0,0.167248]
[1726628604363,0.001,60516.0,60515.0,0.88824]
[1726628604608,0.001,60516.0,60515.0,1.218736]
[1726628604859,0.001,60516.0,60515.0,1.312836]
[1726628605642,0.000822,60522.0,60520.0,0.858172]
[1726628606901,0.000822,60522.0,60520.0,0.888172]
[1726628607969,0.000822,60522.0,60520.0,0.892172]
[1726628608218,0.003823,60521.0,60520.0,0.892172]
[1726628608714,0.003823,60521.0,60520.0,1.222641]
[1726628609207,0.003823,60521.0,60520.0,1.22240441]
[1726628609691,0.003823,60521.0,60520.0,0.89193541]
[1726628611199,0.003823,60521.0,60520.0,0.064]
[1726628611703,0.003823,60521.0,60520.0,0.229234]
[1726628611944,0.01260038,60521.0,60520.0,0.229234]
[1726628612192,0.003823,60521.0,60520.0,0.231234]
[1726628612457,0.003823,60521.0,60520.0,0.561703]
[1726628613417,0.003823,60521.0,60520.0,0.231234]
[1726628614125,0.003823,60521.0,60520.0,0.561703]
[1726628614373,0.003823,60521.0,60520.0,0.892172]
[1726628614837,0.003823,60521.0,60520.0,0.568326]
[1726628616050,0.003823,60521.0,60520.0,0.659726]
[1726628619636,0.003823,60521.0,60520.0,0.990195]
[1726628619844,0.003823,60521.0,60520.0,0.659726]
[1726628622182,0.003823,60521.0,60520.0,0.329257]
[1726628622619,0.003823,60521.0,60520.0,0.659726]
[1726628622835,0.01260595,60521.0,60520.0,0.659726]
[1726628623048,0.003823,60521.0,60520.0,0.659726]
[1726628623908,0.003823,60521.0,60520.0,0.990195]
[1726628625696,0.003823,60521.0,60520.0,0.659726]
[1726628626120,0.003823,60521.0,60520.0,0.990195]
[1726628630139,0.003823,60521.0,60520.0,0.659726]
[1726628630566,0.003823,60521.0,60520.0,0.991841]
[1726628632540,0.003823,60521.0,60520.0,0.661372]
[1726628636787,0.003823,60521.0,60520.0,0.991841]
[1726628637463,0.003823,60521.0,60520.0,0.661372]
[1726628637906,0.003823,60521.0,60520.0,0.991841]
[1726628638142,0.003823,60521.0,60520.0,0.661372]
[1726628638367,0.003823,60521.0,60520.0,0.991841]
[1726628638608,0.003823,60521.0,60520.0,1.81639825]
[1726628638845,0.003823,60521.0,60520.0,1.48592925]
[1726628639541,0.000823,60521.0,60520.0,1.48592925]
[1726628640009,0.003823,60521.0,60520.0,1.48592925]
[1726628640270,0.003823,60521.0,60520.0,1.48192925]
[1726628640488,0.000823,60521.0,60520.0,1.48192925]
[1726628640709,0.002823,60521.0,60520.0,0.747972]
[1726628640935,0.001823,60521.0,60520.0,0.734972]
[1726628641171,0.002823,60521.0,60520.0,0.747972]
[1726628642659,0.001823,60521.0,60520.0,0.747972]
[1726628642888,0.001823,60521.0,60520.0,0.736972]
[1726628643108,0.002823,60521.0,60520.0,0.750972]
[1726628643343,0.001823,60521.0,60520.0,1.067441]
[1726628643586,0.001823,60521.0,60520.0,1.12968982]
[1726628643861,0.002823,60521.0,60520.0,1.7478369]
[1726628644110,0.002823,60521.0,60520.0,1.66096367]
[1726628644350,0.002823,60521.0,60520.0,1.79808573]
[1726628644603,0.003823,60521.0,60520.0,1.67496367]
[1726628644857,0.003823,60521.0,60520.0,1.79808573]
[1726628645341,0.003823,60521.0,60520.0,1.34449467]
[1726628645783,0.003823,60521.0,60520.0,1.67496367]
[1726628646678,0.003823,60521.0,60520.0,1.79808573]
[1726628647348,0.003823,60521.0,60520.0,1.46761673]
[1726628647578,0.003823,60521.0,60520.0,1.34449467]
[1726628647795,0.003823,60521.0,60520.0,1.67496367]
[1726628648292,0.003823,60521.0,60520.0,1.79808573]
[1726628649304,0.003823,60521.0,60520.0,1.67496367]
[1726628654398,0.003823,60521.0,60520.0,1.79812212]
[1726628655030,0.0031786,60521.0,60520.0,1.79812212]
[1726628658474,0.0031786,60521.0,60520.0,1.79811492]
[1726628659161,0.00100672,60531.0,60530.0,0.828035]
[1726628659571,0.0032125,60544.0,60543.0,0.062]
[1726628659574,0.0032125,60544.0,60543.0,0.557514]
[1726628659762,0.0032125,60544.0,60543.0,0.887857]
[1726628660400,0.0032125,60544.0,60543.0,0.980257]
[1726628660619,0.330343,60562.0,60553.0,0.987722]
[1726628660620,0.0001,60562.0,60553.0,0.987722]
[1726628660993,0.0001,60562.0,60561.0,1.340857]
[1726628661247,0.000823,60574.0,60571.0,0.325395]
[1726628661459,0.0040165,60591.0,60571.0,0.325395]
[1726628661460,0.0040165,60591.0,60590.0,0.68713]
[1726628661678,0.0040165,60591.0,60590.0,1.64383858]
[1726628661905,0.01161964,60591.0,60590.0,1.162317]
[1726628662163,0.01161964,60591.0,60590.0,0.72223]
[1726628662164,0.0040165,60591.0,60590.0,0.72223]
[1726628662413,0.0040165,60591.0,60590.0,0.98528367]
[1726628662626,0.0040165,60591.0,60590.0,1.31537067]
[1726628662857,0.0040165,60591.0,60590.0,0.492143]
[1726628663108,0.0040165,60591.0,60590.0,0.393843]
[1726628663337,0.25601192,60609.0,60590.0,0.393843]
[1726628663338,0.01008802,60630.0,60612.0,0.05]
[1726628663557,0.24787038,60632.0,60616.0,0.05]
[1726628663558,0.329923,60621.0,60616.0,0.05]
[1726628663814,0.164964,60619.0,60616.0,0.05]
[1726628664033,0.0025846,60622.0,60616.0,0.05]
[1726628664034,0.01153871,60617.0,60616.0,0.214372]
[1726628664249,0.0032125,60617.0,60616.0,0.214372]
[1726628664473,0.0032125,60617.0,60616.0,0.381345]
[1726628664689,0.0032125,60617.0,60616.0,0.546317]
[1726628665360,0.0032125,60617.0,60616.0,0.70937067]
[1726628665580,0.0032125,60617.0,60616.0,0.80937067]
[1726628665802,0.0032125,60617.0,60616.0,1.13931567]
[1726628666050,0.0032125,60617.0,60616.0,1.62069525]
[1726628666276,0.0060355,60617.0,60616.0,0.96180525]
[1726628666512,0.05714296,60617.0,60607.0,0.0494]
[1726628666737,0.05714296,60617.0,60606.0,0.0494]
[1726628666738,0.164997,60607.0,60606.0,0.0494]
[1726628666966,0.164997,60607.0,60606.0,0.0194]
[1726628667225,0.00844659,60607.0,60606.0,0.0494]
[1726628667467,0.00844659,60607.0,60606.0,0.0194]
[1726628667680,0.00844659,60607.0,60599.0,0.48147158]
[1726628667681,0.164974,60616.0,60613.0,0.0194]
[1726628667901,0.0040355,60617.0,60613.0,0.0194]
[1726628667902,0.164978,60614.0,60613.0,0.0194]
[1726628668354,0.17355658,60614.0,60613.0,0.0194]
[1726628668583,0.50351258,60614.0,60613.0,0.0194]
[1726628668838,0.50351258,60614.0,60605.0,0.0494]
[1726628668839,0.06009431,60614.0,60605.0,0.0494]
[1726628669085,0.165,60606.0,60605.0,0.0494]
[1726628669546,0.17343179,60606.0,60605.0,0.0494]
[1726628669761,0.00843179,60606.0,60605.0,0.0494]
[1726628670219,0.05206012,60613.0,60605.0,0.0594]
[1726628670464,0.00844869,60606.0,60605.0,0.0494]
[1726628670683,0.00844869,60606.0,60605.0,0.544407]
[1726628670902,0.0040355,60617.0,60607.0,0.164995]
[1726628670903,0.329947,60616.0,60607.0,0.164995]
[1726628671147,0.164981,60613.0,60605.0,0.225402]
[1726628671410,0.00847704,60615.0,60610.0,0.03]
[1726628671643,0.00846286,60612.0,60610.0,0.03]
[1726628671874,0.0040355,60617.0,60610.0,0.03]
[1726628671875,0.0040355,60617.0,60616.0,0.216372]
[1726628672120,0.0040355,60617.0,60616.0,0.546317]
[1726628673652,0.0100355,60617.0,60616.0,0.547317]
[1726628674060,0.0040355,60617.0,60616.0,0.546317]
[1726628674291,0.0040355,60617.0,60616.0,0.0524]
[1726628674520,0.1690055,60617.0,60616.0,0.003]
[1726628674752,0.87999296,60617.0,60616.0,0.003]
[1726628675228,0.8288855,60617.0,60616.0,0.003]
[1726628675447,0.22011296,60617.0,60616.0,0.003]
[1726628675661,0.87999296,60617.0,60616.0,0.003]
[1726628675882,0.87999296,60617.0,60616.0,0.012]
[1726628676105,0.87999296,60617.0,60616.0,0.003]
[1726628676372,0.329963,60613.0,60609.0,0.0494]
[1726628676596,0.329963,60613.0,60598.0,1.126079]
[1726628676597,0.165,60606.0,60605.0,0.0494]
[1726628676846,0.165,60606.0,60600.0,0.0494]
[1726628676847,0.330027,60601.0,60600.0,0.0494]
[1726628677063,0.330027,60601.0,60596.0,0.0494]
[1726628677064,0.495073,60597.0,60596.0,0.0494]
[1726628677280,0.160024,60597.0,60596.0,0.0494]